bitfinex/quotes_ETHUSD_20240702
["timestamp","ask_amount","ask_price","bid_price","bid_amount"]
[1719957546681,8.7589,3425.0,3424.9,0.958]
[1719957547475,8.7589,3425.0,3424.9,3.87779]
[1719957547678,8.7589,3425.0,3424.9,6.79758]
[1719957570975,8.7589,3425.0,3424.9,5.83958]
[1719957571174,8.7589,3425.0,3424.9,6.79758]
[1719957572005,11.2282,3425.0,3424.9,2.91979]
[1719957572193,11.2282,3425.0,3424.9,3.87779]
[1719957572194,12.35102,3425.0,3424.9,3.87779]
[1719957572617,11.2282,3425.0,3424.9,3.87779]
[1719957573927,11.2282,3425.0,3424.9,0.958]
[1719957576724,2.4521,3424.9,3424.5,2.92012]
[1719957576883,0.05836406,3424.8,3424.5,2.92013]
[1719957577084,0.05836406,3424.8,3424.7,0.958]
[1719957578924,0.05836406,3424.8,3424.2,2.92035]
[1719957579126,0.05836406,3424.8,3424.7,0.958]
[1719957579290,1.18530047,3424.8,3424.7,0.958]
[1719957579489,1.18530047,3424.8,3424.2,2.92038]
[1719957579726,0.05836406,3424.7,3424.2,2.92038]
[1719957579924,0.05836406,3424.7,3424.6,0.958]
[1719957580727,0.05836406,3424.8,3424.6,0.958]
[1719957580930,0.05836406,3424.8,3424.7,0.958]
[1719957582307,0.05836406,3424.8,3424.2,2.92038]
[1719957582647,2.3585,3424.7,3424.0,2.92049]
[1719957582834,0.05836406,3424.6,3424.1,2.9204]
[1719957583056,0.05836406,3424.6,3424.5,0.958]
[1719957588650,2.46596406,3424.6,3424.0,2.92049]
[1719957588821,0.05836406,3424.5,3424.0,2.92049]
[1719957589028,0.05836406,3424.5,3424.4,0.958]
[1719957597037,0.05836406,3424.5,3424.0,2.92049]
[1719957597244,0.05836406,3424.5,3423.8,2.92073]
[1719957597450,0.05836406,3424.5,3424.3,0.958]
[1719957597676,0.24659641,3424.4,3424.3,0.958]
[1719957597826,2.3469,3424.3,3423.8,2.92073]
[1719957598027,0.05836406,3424.2,3423.8,2.92073]
[1719957598324,0.05836406,3424.2,3424.1,0.958]
[1719957600839,0.05836406,3424.8,3424.1,0.958]
[1719957601040,7.8009,3424.7,3424.4,2.2602]
[1719957601247,7.8009,3424.7,3424.6,0.958]
[1719957603263,6.93866107,3424.7,3424.6,0.958]
[1719957603427,1.49487399,3424.7,3424.6,2.92004]
[1719957603630,1.49487399,3424.7,3424.4,2.9202]
[1719957603830,1.49487399,3424.7,3424.6,0.958]
[1719957605180,1.49487399,3424.7,3424.6,3.87804]
[1719957606341,1.49487399,3424.7,3424.6,9.21658]
[1719957606342,1.64087399,3424.7,3424.6,9.21658]
[1719957606541,1.64087399,3424.7,3424.6,10.986103]
[1719957610568,1.49487399,3424.7,3424.6,10.986103]
[1719957611572,1.49487399,3424.7,3424.6,13.906143]
[1719957614744,1.49487399,3424.7,3424.6,10.028103]
[1719957614944,1.49487399,3424.7,3424.6,10.986103]
[1719957615243,1.49487399,3424.7,3424.6,13.906143]
[1719957615458,1.49487399,3424.7,3424.6,7.609603]
[1719957615660,1.49487399,3424.7,3424.6,7.34808]
[1719957622470,1.49487399,3424.7,3424.6,10.26812]
[1719957622975,1.49487399,3424.7,3424.6,7.34808]
[1719957629193,1.49487399,3424.7,3424.6,6.79808]
[1719957633820,1.49487399,3424.7,3424.6,10.26812]
[1719957633975,1.49487399,3424.7,3424.6,11.528892]
[1719957634181,0.05836406,3425.5,3425.3,2.91941]
[1719957634383,2.36806406,3425.6,3425.3,2.91941]
[1719957634927,2.36806406,3425.6,3425.4,0.958]
[1719957635086,2.3097,3425.6,3425.4,0.958]
[1719957635307,0.05836406,3425.5,3425.4,0.958]
[1719957636110,2.3097,3425.6,3425.4,0.958]
[1719957642040,0.05836406,3425.5,3425.4,0.958]
[1719957645286,2.3097,3425.6,3425.4,0.958]
[1719957645761,2.3097,3425.6,3425.4,3.87736]
[1719957645762,0.05836406,3425.5,3425.4,3.87736]
[1719957646260,2.3097,3425.6,3425.4,3.87736]
[1719957647369,0.05836406,3426.4,3425.4,2.91936]
[1719957647370,2.2511,3426.3,3425.4,2.91936]
[1719957647650,2.2511,3426.1,3425.5,0.958]
[1719957647847,0.49125633,3426.0,3425.5,0.958]
[1719957648053,3.05836406,3426.0,3425.5,0.958]
[1719957648562,3.0,3425.9,3425.5,0.958]
[1719957648759,0.05836406,3425.8,3425.5,0.958]
[1719957649839,0.05836406,3426.0,3425.5,0.958]
[1719957650018,0.43289413,3425.9,3425.5,0.958]
[1719957650363,0.05836406,3425.8,3425.5,0.958]
[1719957651469,0.05836406,3426.0,3425.5,0.958]
[1719957651682,0.43287979,3425.9,3425.5,0.958]
[1719957651821,0.05836406,3425.8,3425.5,0.958]
[1719957652881,0.05836406,3426.0,3425.5,0.958]
[1719957653029,0.55404105,3425.9,3425.5,0.958]
[1719957653367,0.05836406,3425.8,3425.5,0.958]
[1719957654727,0.05836406,3426.0,3425.6,2.91917]
[1719957654955,0.05836406,3426.0,3425.9,0.958]
[1719957655150,0.05836406,3426.3,3425.9,0.958]
[1719957655359,0.29536047,3426.3,3425.8,2.91894]
[1719957655550,0.05836406,3426.2,3425.9,0.958]
[1719957655866,0.05836406,3426.2,3425.8,2.91894]
[1719957656029,0.05836406,3426.2,3425.9,0.958]
[1719957661136,0.05836406,3426.2,3425.9,3.87693]
[1719957663159,0.05836406,3426.2,3426.0,2.91883]
[1719957663368,2.4074,3426.6,3426.2,2.91868]
[1719957663369,0.05836406,3426.5,3426.2,2.91868]
[1719957663570,0.05836406,3426.5,3426.4,0.958]
[1719957663935,2.3315,3427.2,3426.4,0.958]
[1719957663936,0.05836406,3427.1,3426.4,0.958]
[1719957665284,0.05836406,3427.1,3426.6,0.958]
[1719957665675,0.05836406,3427.1,3426.8,0.958]
[1719957666116,0.05836406,3427.1,3427.0,0.958]
[1719957672681,0.05836406,3427.1,3426.5,2.91842]
[1719957672903,0.05836406,3427.1,3426.6,3.87634]
[1719957673304,0.05836406,3427.1,3426.8,0.958]
[1719957673504,0.29735047,3427.1,3426.8,0.958]
[1719957678310,0.05836406,3427.1,3426.8,0.958]
[1719957688841,0.05836406,3427.1,3426.6,2.91834]
[1719957689259,0.05836406,3427.1,3426.8,0.958]
[1719957697576,0.05836406,3427.1,3427.0,0.958]
[1719957711397,0.27068303,3427.1,3427.0,0.958]
[1719957714482,0.27068507,3427.1,3427.0,0.958]
[1719957716359,0.05836406,3427.1,3427.0,0.958]
[1719957716564,0.27068147,3427.1,3427.0,0.958]
[1719957716755,0.27068147,3427.1,3426.6,2.91834]
[1719957716955,0.27068147,3427.1,3426.9,0.958]
[1719957716956,0.05836406,3427.1,3426.9,0.958]
[1719957718361,0.21232429,3427.0,3426.9,0.958]
[1719957719158,0.05836406,3427.1,3426.9,0.958]
[1719957720807,0.05836406,3427.1,3426.5,5.25771]
[1719957721013,0.05836406,3427.1,3426.9,0.958]
[1719957724508,0.21232011,3427.0,3426.9,0.958]
[1719957724708,0.05836406,3427.1,3426.9,0.958]
[1719957732937,0.05836406,3427.1,3426.9,0.958]
[1719957734256,0.05836406,3427.5,3427.0,2.3723]
[1719957734405,3.0,3430.0,3427.3,5.31534]
[1719957734406,8.7534,3427.4,3427.3,5.31534]
[1719957734606,8.7534,3427.4,3427.3,9.19108]
[1719957735008,8.7534,3427.4,3427.3,9.64498]
[1719957738968,8.7534,3427.4,3426.1,0.6124246]
[1719957738969,14.1771,3427.4,3426.1,0.6124246]
[1719957739294,0.93370406,3427.3,3426.9,0.958]
[1719957739567,8.81176406,3427.2,3426.9,0.958]
[1719957739774,3.0,3427.1,3426.9,0.958]
[1719957739951,3.05836406,3427.1,3426.9,0.958]
[1719957740138,3.05836406,3427.1,3426.4,2.91845]
[1719957740338,3.05836406,3427.1,3427.0,0.958]
[1719957740543,7.7954,3427.0,3426.2,2.91865]
[1719957740756,7.7954,3427.0,3426.9,0.958]
[1719957742042,7.7954,3427.0,3426.1,2.91874]
[1719957742265,0.05836406,3426.9,3426.7,0.958]
[1719957746257,7.7954,3426.8,3426.7,0.958]
[1719957751209,7.7954,3426.8,3426.5,0.958]
[1719957758032,7.7954,3426.8,3426.7,0.958]
[1719957763544,7.7954,3426.8,3426.7,1.508]
[1719957764323,7.7954,3426.8,3426.7,2.474923]
[1719957764554,7.7954,3426.8,3426.7,10.669423]
[1719957764729,7.64383543,3426.8,3426.7,13.587673]
[1719957764925,1.168564,3429.9,3427.7,2.358]
[1719957764926,2.3744,3428.9,3427.7,2.358]
[1719957765165,2.3744,3428.7,3427.1,2.358]
[1719957765369,0.05836406,3428.8,3426.7,2.908]
[1719957765370,2.3744,3428.0,3426.7,2.908]
[1719957765526,0.05836406,3427.9,3426.8,0.55]
[1719957765723,0.05836406,3427.9,3427.1,0.958]
[1719957766415,0.05836406,3427.9,3427.3,0.958]
[1719957766821,0.05836406,3427.9,3426.8,0.55]
[1719957767040,0.05836406,3427.9,3427.1,0.958]
[1719957767364,8.7527,3427.8,3427.1,0.958]
[1719957767660,1.47691047,3427.7,3427.1,0.958]
[1719957767855,8.7527,3427.6,3426.3,2.91859]
[1719957768151,8.7527,3427.6,3426.7,0.958]
[1719957768152,2.49796406,3427.5,3426.7,0.958]
[1719957768362,8.7527,3427.4,3426.7,0.958]
[1719957768510,0.05836406,3427.3,3426.7,0.958]
[1719957768716,8.7527,3427.2,3426.7,0.958]
[1719957768951,8.7527,3427.2,3426.9,0.958]
[1719957769156,8.7527,3427.2,3427.1,0.958]
[1719957769461,8.7527,3427.2,3427.1,1.593306]
[1719957769626,8.7527,3427.2,3427.1,0.635306]
[1719957769823,8.7527,3427.2,3427.1,0.958]
[1719957770455,8.7527,3427.2,3426.8,0.958]
[1719957771265,8.7527,3427.2,3427.0,0.958]
[1719957772361,8.7527,3427.2,3427.1,2.3578]
[1719957772564,8.7527,3427.2,3427.1,5.82571]
[1719957772711,8.7527,3427.2,3427.1,6.795883]
[1719957772917,8.7527,3427.2,3427.1,2.478173]
[1719957773241,8.7527,3427.2,3427.1,0.970173]
[1719957773451,8.7527,3427.2,3427.1,0.958]
[1719957774014,8.7527,3427.2,3426.6,2.91833]
[1719957774244,8.7527,3427.2,3427.0,0.958]
[1719957777957,8.7527,3427.2,3427.0,3.87593]
[1719957778201,8.7527,3427.2,3427.1,8.87372]
[1719957778395,8.7527,3427.2,3427.1,9.856892]
[1719957778683,8.7527,3427.2,3427.1,0.983172]
[1719957778974,8.7527,3427.2,3427.1,0.958]
[1719957779744,8.7527,3427.2,3426.8,2.91817]
[1719957779946,0.05836406,3427.1,3426.3,5.40749]
[1719957780186,8.7527,3427.2,3426.8,2.91814]
[1719957780356,2.3425,3427.1,3426.5,2.91842]
[1719957780545,8.7527,3427.2,3426.6,0.540732]
[1719957781383,8.7527,3427.2,3426.7,2.97660079]
[1719957781691,8.7527,3427.2,3427.0,2.918]
[1719957781891,8.7527,3427.2,3426.9,2.283]
[1719957781892,8.7527,3427.2,3427.1,5.75991]
[1719957782100,8.7527,3427.2,3427.1,4.327201]
[1719957782461,8.7527,3427.2,3427.1,0.859291]
[1719957782793,8.7527,3427.2,3426.8,2.91814]
[1719957783021,8.7527,3427.2,3426.9,2.91808]
[1719957783294,8.7527,3427.2,3426.8,2.9181]
[1719957783493,8.7527,3427.2,3426.9,2.91806]
[1719957783792,8.7527,3427.2,3427.1,2.91791]
[1719957783993,8.7527,3427.2,3427.1,4.051507]
[1719957785006,8.7527,3427.2,3426.9,2.91806]
[1719957785891,8.7527,3427.2,3426.6,0.540732]
[1719957786193,8.7527,3427.2,3426.8,2.9181]
[1719957786494,8.7527,3427.2,3426.4,4.7612]
[1719957786495,2.54466406,3427.1,3426.4,2.9185]
[1719957786696,8.7527,3427.2,3426.5,2.91842]
[1719957787194,8.7527,3427.2,3426.7,2.91823]
[1719957787353,8.7527,3427.2,3426.8,3.439133]
[1719957787975,8.7527,3427.2,3426.5,2.292]
[1719957787976,8.7527,3427.2,3426.5,5.21037]
[1719957788173,8.7527,3427.2,3426.6,2.91833]
[1719957790093,2.41236406,3427.1,3426.4,2.91845]
[1719957790295,2.354,3427.1,3426.5,2.91841]
[1719957790508,8.7527,3427.0,3426.7,2.91819]
[1719957790829,8.7527,3427.0,3426.6,3.46833]
[1719957791020,8.7527,3427.0,3426.6,2.91833]
[1719957791318,8.7527,3427.0,3426.6,3.32661783]
[1719957792178,8.7527,3427.0,3426.6,0.40828783]
[1719957792379,2.3904,3426.9,3426.5,2.91836]
[1719957793722,2.44876406,3426.9,3426.3,2.91858]
[1719957795285,2.44876406,3426.9,3426.1,2.91876]
[1719957795686,8.7527,3427.0,3426.5,2.91842]
[1719957795917,8.7527,3427.0,3426.6,0.35020342]
[1719957797517,8.7527,3427.0,3426.6,0.05836142]
[1719957797828,8.7527,3427.0,3426.6,2.97669142]
[1719957798179,8.7527,3427.0,3426.7,2.91824]
[1719957801439,8.7527,3427.0,3426.3,2.91853]
[1719957801601,8.7527,3427.0,3426.4,3.46844]
[1719957801928,8.7527,3427.0,3426.6,2.91832]
[1719957803733,8.7527,3427.0,3426.6,3.61535222]
[1719957804818,8.7527,3427.0,3426.4,3.46845]
[1719957805480,2.49366406,3426.9,3426.3,2.91856]
[1719957806457,2.4353,3426.9,3426.3,2.91856]
[1719957810520,2.51646406,3426.8,3425.3,3.53220247]
[1719957810720,2.51646406,3426.8,3425.5,2.91923]
[1719957810721,2.4581,3426.6,3425.5,2.91923]
[1719957810958,0.05836406,3426.5,3425.5,2.91923]
[1719957811162,2.4581,3426.6,3425.8,2.91897]
[1719957811469,0.05836406,3426.5,3425.8,2.91897]
[1719957812934,2.4581,3426.6,3425.8,2.9773419]
[1719957814170,2.4581,3426.6,3425.8,3.56698909]
[1719957814520,2.4581,3426.6,3425.8,5.85898909]
[1719957815030,0.05836406,3426.5,3425.8,5.80061719]
[1719957815252,0.05836406,3426.5,3425.8,2.292]
[1719957815424,2.2804,3426.4,3425.6,2.91913]
[1719957815624,0.05836406,3426.3,3425.6,2.91913]
[1719957817166,0.05836406,3426.3,3425.4,5.21135]
[1719957817351,0.05836406,3426.3,3425.5,0.55]
[1719957817555,0.29224047,3426.3,3425.5,0.55]
[1719957817748,0.05836406,3426.2,3425.5,3.46927]
[1719957818747,0.05836406,3426.3,3425.5,3.46927]
[1719957819466,2.33876406,3426.4,3425.5,3.46927]
[1719957819692,2.33876406,3426.4,3425.6,0.92484316]
[1719957819842,2.2804,3426.4,3425.7,0.55]
[1719957820176,2.2804,3426.4,3425.8,2.35037327]
[1719957820975,2.2804,3426.4,3425.8,5.26939327]
[1719957821273,2.2804,3426.4,3425.8,6.46619391]
[1719957822475,2.2804,3426.4,3426.0,2.91882]
[1719957823277,8.7527,3426.8,3426.1,0.55]
[1719957823595,8.7527,3426.8,3426.2,2.91866]
[1719957824178,8.7527,3426.8,3426.0,2.91882]
[1719957824179,0.05836406,3426.7,3426.0,2.91882]
[1719957824586,2.2868,3426.6,3426.0,2.91882]
[1719957825390,2.2868,3426.6,3426.0,3.85148206]
[1719957826294,2.2868,3426.6,3426.1,2.91876]
[1719957826845,2.2868,3426.6,3426.2,2.91865]
[1719957827064,8.7527,3426.8,3426.2,2.97701681]
[1719957827982,8.7527,3426.8,3426.3,0.05836607]
[1719957828682,8.7527,3426.8,3426.2,2.91865]
[1719957829992,8.7527,3426.8,3426.3,0.05836603]
[1719957830347,8.7527,3426.8,3426.5,2.91841]
[1719957830548,8.7527,3426.8,3426.5,2.97677267]
[1719957832848,8.7527,3426.8,3426.7,2.91825]
[1719957833052,8.7527,3426.8,3426.7,5.36275]
[1719957833353,8.7527,3426.8,3426.7,5.91275]
[1719957833551,8.7527,3426.8,3426.7,6.73906127]
[1719957835146,8.7527,3426.8,3426.7,4.29456127]
[1719957839307,8.7527,3426.8,3426.7,0.82631127]
[1719957839590,8.7527,3426.8,3426.6,2.91832]
[1719957840589,2.2815,3426.7,3426.3,3.5081156]
[1719957840885,8.7527,3426.8,3426.7,2.91825]
[1719957841289,8.7527,3426.8,3426.5,2.91836]
[1719957842578,8.7527,3426.8,3426.6,2.91827]
[1719957842772,8.7527,3426.8,3426.6,3.46827]
[1719957843252,8.7049,3426.8,3426.6,3.46827]
[1719957843580,8.7049,3426.8,3426.7,1.116423]
[1719957844086,8.7049,3426.8,3426.7,4.034673]
[1719957844291,8.7049,3426.8,3426.7,4.584673]
[1719957845389,8.7049,3426.8,3426.7,7.502923]
[1719957846691,5.4576,3427.9,3427.0,2.91796]
[1719957846900,0.05836406,3427.8,3427.1,0.05835249]
[1719957847109,3.05836406,3427.8,3427.1,0.05835249]
[1719957847253,2.35936406,3427.7,3426.8,5.21011]
[1719957847464,2.35936406,3427.7,3426.7,3.46825]
[1719957847781,6.079,3428.5,3426.7,3.46825]
[1719957847782,2.35936406,3427.6,3426.7,3.46825]
[1719957847973,2.35936406,3427.6,3426.7,4.044275]
[1719957847974,0.05836406,3427.5,3426.7,4.044275]
[1719957848591,2.4547,3427.4,3426.7,3.494275]
[1719957848761,2.4547,3427.4,3426.7,0.576025]
[1719957848762,0.05836406,3427.3,3426.7,0.576025]
[1719957851398,2.4547,3427.4,3426.7,0.576025]
[1719957851584,2.4547,3427.4,3426.8,0.3494365]
[1719957852106,0.05836406,3427.3,3426.8,0.3494365]
[1719957853199,2.4547,3427.4,3426.8,0.3494365]
[1719957855096,2.4547,3427.4,3426.8,0.40779402]
[1719957855308,2.4547,3427.4,3426.8,3.32595402]
[1719957855467,2.4547,3427.4,3426.9,0.6820229]
[1719957859384,2.4547,3427.4,3426.9,0.7403784]
[1719957860304,2.4547,3427.4,3426.9,3.6584484]
[1719957860506,2.3493,3427.6,3427.1,2.91788]
[1719957860871,2.3493,3427.6,3426.9,2.91807]
[1719957861516,2.3493,3427.6,3427.0,2.918]
[1719957863276,2.3493,3427.6,3427.0,3.53656865]
[1719957863534,2.3493,3427.6,3427.0,3.59492194]
[1719957864790,2.3493,3427.6,3427.0,3.53656865]
[1719957867895,2.3493,3427.6,3427.1,0.05835325]
[1719957868243,2.2588,3428.4,3427.3,2.91766]
[1719957868547,3.0,3428.9,3427.4,0.05834734]
[1719957868548,2.2588,3428.2,3427.4,0.05834734]
[1719957868737,8.81016406,3428.1,3427.3,2.91766]
[1719957868931,3.0,3428.0,3427.3,2.91766]
[1719957869239,8.7518,3427.9,3427.3,2.91766]
[1719957869742,2.3186,3427.8,3427.3,2.91766]
[1719957869912,8.7518,3427.7,3427.3,2.91766]
[1719957870809,8.7518,3427.7,3427.1,2.91791]
[1719957876936,8.7518,3427.7,3427.2,2.91783]
[1719957879927,8.7518,3427.7,3427.4,2.91765]
[1719957883945,8.7518,3427.7,3427.6,0.955]
[1719957884144,8.7518,3427.7,3427.1,2.91785]
[1719957884356,8.7518,3427.7,3427.0,5.38702]
[1719957884357,8.7518,3427.7,3427.3,0.955]
[1719957885569,0.05836406,3427.6,3427.3,0.955]
[1719957885772,0.05836406,3427.6,3427.2,2.9178]
[1719957885773,8.7518,3427.5,3427.2,2.9178]
[1719957886167,8.7518,3427.5,3427.0,2.91792]
[1719957887362,8.7518,3427.5,3427.1,2.91791]
[1719957888444,2.3867,3427.4,3427.1,2.91791]
[1719957888847,0.05836406,3427.3,3426.2,2.93803652]
[1719957889177,5.3867,3427.4,3426.8,2.91817]
[1719957892474,5.3867,3427.4,3426.6,2.91833]
[1719957892670,5.3867,3427.4,3426.7,0.55]
[1719957892834,5.44506406,3427.4,3426.7,0.55]
[1719957894047,5.3867,3427.4,3426.7,0.60835639]
[1719957895005,6.85891406,3427.4,3426.2,5.24405]
[1719957895283,2.4351,3427.3,3426.4,2.9185]
[1719957895492,0.05836406,3427.2,3426.5,0.55]
[1719957897846,0.05836406,3427.2,3426.4,0.55]
[1719957898714,2.4206,3427.1,3426.4,0.55]
[1719957898985,2.4206,3427.1,3426.3,0.55]
[1719957899284,2.4206,3427.1,3426.3,1.362408]
[1719957899445,2.4206,3427.1,3426.3,4.280958]
[1719957900471,3.0,3427.4,3426.3,4.280958]
[1719957900472,2.2948,3427.3,3426.5,5.21036]
[1719957900681,2.2948,3427.3,3426.6,3.46834]
[1719957900985,2.2948,3427.3,3426.6,4.6606948]
[1719957901352,2.2948,3427.3,3426.6,0.55]
[1719957901551,3.05836406,3427.4,3426.2,2.91865]
[1719957901552,2.2948,3427.1,3426.2,2.91865]
[1719957901763,0.05836406,3427.0,3426.3,0.55]
[1719957902097,0.05836406,3427.0,3426.3,3.46859]
[1719957902262,0.05836406,3427.0,3426.3,0.55]
[1719957902467,0.05836406,3427.0,3426.2,0.55]
[1719957902676,0.05836406,3427.0,3426.2,4.281622]
[1719957904088,2.486,3426.9,3426.2,1.362952]
[1719957904286,2.486,3426.9,3426.2,0.55]
[1719957905000,2.486,3426.9,3426.2,3.46864]
[1719957905202,2.486,3426.9,3426.3,2.91859]
[1719957906006,2.486,3426.9,3426.8,0.955]
[1719957907265,2.3373,3427.3,3426.8,0.955]
[1719957907479,2.3373,3427.3,3427.0,0.955]
[1719957907480,8.7518,3427.2,3427.0,0.955]
[1719957909003,10.16071,3427.2,3426.3,2.91854]
[1719957909173,2.45186406,3427.1,3426.7,0.955]
[1719957909499,2.45186406,3427.1,3426.3,2.91854]
[1719957909500,2.45186406,3427.1,3426.6,0.955]
[1719957909709,4.01312147,3427.1,3426.6,0.955]
[1719957910003,2.3935,3427.0,3426.6,0.955]
[1719957910174,2.45186406,3427.0,3426.6,0.955]
[1719957911265,2.45186406,3427.0,3425.9,2.4075]
[1719957911266,2.45186406,3427.0,3425.9,2.91892]
[1719957911461,2.45186406,3427.0,3426.5,0.955]
[1719957911462,2.4595,3426.9,3426.5,0.955]
[1719957911715,2.4595,3426.9,3426.2,2.91862]
[1719957911915,2.51786406,3426.9,3426.4,0.955]
[1719957912085,2.4595,3426.9,3426.4,0.955]
[1719957918810,2.4595,3426.9,3426.6,0.955]
[1719957919514,8.7518,3427.2,3426.6,3.3115245]
[1719957919733,8.7518,3427.2,3427.0,0.955]
[1719957923341,8.7518,3427.2,3426.8,2.91815]
[1719957923472,8.7518,3427.2,3427.1,0.955]
[1719957924930,8.7518,3427.2,3426.6,2.91833]
[1719957925147,0.05836406,3427.1,3426.7,0.955]
[1719957925297,11.1822,3427.2,3426.7,0.955]
[1719957925995,11.1822,3427.2,3426.6,2.91833]
[1719957925996,11.1822,3427.2,3426.9,0.955]
[1719957926829,8.7518,3427.2,3426.9,0.955]
[1719957927038,8.7518,3427.2,3427.1,0.955]
[1719957934757,2.4031,3427.1,3426.6,2.91831]
[1719957934910,2.4031,3427.1,3426.8,0.955]
[1719957936464,8.7518,3427.2,3427.0,0.955]
[1719957941438,8.7518,3427.2,3427.0,1.34815068]
[1719957942969,8.7518,3427.2,3427.0,4.26610068]
[1719957943134,8.7518,3427.2,3427.1,2.91791]
[1719957944382,8.7518,3427.2,3427.1,5.34941]
[1719957951260,8.7518,3427.2,3427.1,3.87291]
[1719957951742,8.7518,3427.2,3426.8,2.91814]
[1719957951743,8.7518,3427.2,3426.9,2.91808]
[1719957951945,8.7518,3427.2,3427.1,0.955]
[1719957959105,8.7518,3427.2,3426.7,2.91819]
[1719957959278,8.7518,3427.2,3427.1,0.955]
[1719957963609,8.7498,3427.2,3427.1,1.634102]
[1719957972632,8.7498,3427.2,3427.1,4.552012]
[1719957972930,8.7498,3427.2,3427.1,8.019922]
[1719957973347,8.7498,3427.2,3427.1,10.454522]
[1719957976028,8.7498,3427.2,3427.1,4.147012]
[1719957976231,8.7498,3427.2,3427.1,3.87291]
[1719957978544,8.7498,3427.2,3426.3,3.09951786]
[1719957978707,8.7498,3427.2,3427.1,0.955]
[1719957979748,8.7498,3427.2,3426.9,0.955]
[1719957980996,8.7498,3427.2,3427.1,0.955]
[1719957984206,8.7498,3427.2,3427.0,0.955]
[1719957992646,8.7498,3427.2,3426.4,0.55]
[1719957992647,2.47066406,3427.1,3426.4,0.55]
[1719957992812,2.4123,3427.1,3426.4,3.4685]
[1719957993011,2.4123,3427.1,3426.8,0.955]
[1719957993235,8.7498,3427.2,3427.0,0.955]
[1719957999422,8.7498,3427.2,3426.7,5.39903]
[1719957999423,8.7498,3427.2,3426.7,2.4808]
[1719957999646,8.7498,3427.2,3427.0,0.955]
[1719958005583,8.7498,3427.2,3426.8,2.91817]
[1719958005882,8.7498,3427.2,3427.1,0.955]
[1719958008269,8.7498,3427.2,3427.1,6.91791]
[1719958009563,8.7498,3427.2,3427.1,4.42291]
[1719958009874,8.7498,3427.2,3427.1,5.406706]
[1719958020102,8.7498,3427.2,3427.1,4.451706]
[1719958020444,8.7498,3427.2,3427.1,5.406706]
[1719958025849,8.7498,3427.2,3427.1,0.983796]
[1719958026154,8.7498,3427.2,3427.1,0.955]
[1719958029119,8.7498,3427.2,3427.1,3.96]
[1719958030361,8.7498,3427.2,3427.1,6.87791]
[1719958035392,8.7498,3427.2,3427.1,4.42291]
[1719958047868,8.7498,3427.2,3427.1,2.91791]
[1719958048074,8.7498,3427.2,3427.1,0.955]
[1719958048690,8.7498,3427.2,3426.8,2.91814]
[1719958048904,8.7498,3427.2,3427.1,0.955]
[1719958062213,8.7498,3427.2,3426.6,2.9183]
[1719958062519,2.52726406,3427.1,3427.0,0.955]
[1719958064628,2.2748,3427.0,3425.8,0.61274867]
[1719958064834,2.2748,3427.0,3425.7,2.4588]
[1719958064835,2.33316406,3426.9,3425.9,2.91886]
[1719958065134,2.33316406,3426.9,3426.3,0.955]
[1719958065135,8.7498,3426.8,3426.3,0.955]
[1719958065281,8.7498,3426.8,3426.5,0.955]
[1719958065282,1.16666047,3426.7,3426.5,0.955]
[1719958072129,0.05836406,3426.7,3426.5,0.955]
[1719958072647,8.7498,3426.8,3426.5,0.955]
[1719958072937,8.7498,3426.8,3426.7,0.955]
[1719958074732,8.7498,3426.8,3426.7,3.2483]
[1719958075030,8.7498,3426.8,3426.7,6.71655]
[1719958075233,8.7498,3426.8,3426.7,5.386745]
[1719958077322,8.7498,3426.8,3426.5,2.9184]
[1719958077538,8.7498,3426.8,3426.7,0.955]
[1719958078344,8.7498,3426.8,3425.8,2.91894]
[1719958078515,8.7498,3426.8,3426.6,0.955]
[1719958079626,0.05836406,3426.7,3426.6,0.955]
[1719958080299,8.7498,3426.8,3426.6,0.955]
[1719958081638,0.05836406,3426.7,3426.6,0.955]
[1719958084008,8.7498,3426.8,3426.6,0.955]
[1719958085247,0.05836406,3426.7,3426.6,0.955]
[1719958086504,3.50408047,3426.7,3425.7,2.91905]
[1719958086716,3.50408047,3426.7,3426.0,0.955]
[1719958086938,8.7498,3426.6,3426.0,0.955]
[1719958087100,0.05836406,3426.5,3426.0,0.955]
[1719958087299,8.7498,3426.6,3426.2,0.955]
[1719958087540,0.05836406,3426.5,3426.4,0.955]
[1719958088345,0.05836406,3426.5,3426.2,0.955]
[1719958089247,0.05836406,3426.5,3426.4,0.955]
[1719958089535,8.7498,3426.6,3426.4,0.955]
[1719958105661,8.7498,3426.6,3425.9,5.22937]
[1719958105871,0.05836406,3426.5,3426.3,0.955]
[1719958106396,0.05836406,3426.5,3425.4,3.0]
[1719958106397,2.3561,3426.4,3425.4,2.9193]
[1719958106684,2.3561,3426.4,3425.6,0.955]
[1719958106685,8.80816406,3426.3,3425.6,0.955]
[1719958106847,8.80816406,3426.3,3425.6,1.342427]
[1719958106848,0.05836406,3426.2,3425.6,1.342427]
[1719958107045,0.05836406,3426.2,3425.8,0.955]
[1719958108808,0.05836406,3426.2,3425.5,2.91927]
[1719958108980,0.05836406,3426.2,3425.9,0.955]
[1719958111295,0.05836406,3426.2,3425.5,2.91927]
[1719958111451,0.05836406,3426.2,3425.8,0.955]
[1719958115787,2.3358,3426.1,3425.1,2.91956]
[1719958115995,0.05836406,3426.0,3425.6,0.955]
[1719958117305,0.05836406,3426.0,3425.2,0.55]
[1719958117667,0.05836406,3426.0,3425.0,0.55]
[1719958117871,0.05836406,3426.0,3425.3,0.955]